[Event "December 5 Early 2023"]
[Site "https://www.chess.com"]
[Date "2023.12.05"]
[Round "10"]
[White "Osiecki, Stanislaw"]
[Black "Reinecke, Katharina"]
[Result "1-0"]
[Board "149"]
[TimeControl "180+1"]
[WhiteFideId "1102990"]
[BlackFideId "12929727"]
[WhiteElo "2113"]
[BlackElo "2022"]
[WhiteTeam "POL"]
[BlackTeam "GER"]
[WhiteClock "0:01:14"]
[BlackClock "0:00:16"]

1. e4 {[%clk 0:03:00]}  c6 {[%clk 0:02:59]} 2. d4 {[%clk 0:02:58]}  d5 {[%clk 0:02:59]} 3. e5 {[%clk 0:02:58]}  Bf5 {[%clk 0:02:58]} 4. c3 {[%clk 0:02:58]}  e6 {[%clk 0:02:57]} 5. Bd3 {[%clk 0:02:58]}  Bxd3 {[%clk 0:02:56]} 6. Qxd3 {[%clk 0:02:57]}  Ne7 {[%clk 0:02:52]} 7. Ne2 {[%clk 0:02:57]}  Nf5 {[%clk 0:02:52]} 8. Ng3 {[%clk 0:02:58]}  g6 {[%clk 0:02:41]} 9. Nxf5 {[%clk 0:02:56]}  gxf5 {[%clk 0:02:41]} 10. O-O {[%clk 0:02:57]}  Be7 {[%clk 0:02:31]} 11. b4 {[%clk 0:02:58]}  Nd7 {[%clk 0:02:20]} 12. Bf4 {[%clk 0:02:59]}  Nf8 {[%clk 0:02:08]} 13. Nd2 {[%clk 0:03:00]}  Ng6 {[%clk 0:02:08]} 14. Qf3 {[%clk 0:02:55]}  h5 {[%clk 0:01:56]} 15. Kh1 {[%clk 0:02:50]}  Nh4 {[%clk 0:01:47]} 16. Qe2 {[%clk 0:02:45]}  Rg8 {[%clk 0:01:43]} 17. Rg1 {[%clk 0:02:37]}  Bg5 {[%clk 0:01:36]} 18. Bxg5 {[%clk 0:02:35]}  Qxg5 {[%clk 0:01:36]} 19. Nf3 {[%clk 0:02:30]}  Nxf3 {[%clk 0:01:34]} 20. Qxf3 {[%clk 0:02:29]}  Qg4 {[%clk 0:01:31]} 21. Qxg4 {[%clk 0:02:29]}  hxg4 {[%clk 0:01:31]} 22. Rgb1 {[%clk 0:02:25]}  Kd7 {[%clk 0:01:23]} 23. a4 {[%clk 0:02:24]}  Rh8 {[%clk 0:01:08]} 24. Kg1 {[%clk 0:02:24]}  b6 {[%clk 0:01:02]} 25. b5 {[%clk 0:02:21]}  c5 {[%clk 0:01:02]} 26. dxc5 {[%clk 0:02:20]}  bxc5 {[%clk 0:01:02]} 27. a5 {[%clk 0:02:19]}  Rab8 {[%clk 0:00:56]} 28. b6 {[%clk 0:02:19]}  axb6 {[%clk 0:00:56]} 29. axb6 {[%clk 0:02:17]}  Rb7 {[%clk 0:00:56]} 30. f3 {[%clk 0:02:00]}  gxf3 {[%clk 0:00:54]} 31. gxf3 {[%clk 0:02:00]}  Rhb8 {[%clk 0:00:53]} 32. Kg2 {[%clk 0:01:52]}  Kc6 {[%clk 0:00:50]} 33. Ra7 {[%clk 0:01:47]}  c4 {[%clk 0:00:43]} 34. h4 {[%clk 0:01:41]}  Rg8+ {[%clk 0:00:38]} 35. Kh3 {[%clk 0:01:37]}  f4 {[%clk 0:00:34]} 36. h5 {[%clk 0:01:36]}  Rg3+ {[%clk 0:00:33]} 37. Kh4 {[%clk 0:01:36]}  Rxf3 {[%clk 0:00:33]} 38. h6 {[%clk 0:01:35]}  Rf2 {[%clk 0:00:31]} 39. Rh1 {[%clk 0:01:31]}  Kxb6 {[%clk 0:00:20]} 40. Rxb7+ {[%clk 0:01:30]}  Kxb7 {[%clk 0:00:20]} 41. h7 {[%clk 0:01:28]}  Rc2 {[%clk 0:00:18]} 42. h8=Q {[%clk 0:01:28]}  Rxc3 {[%clk 0:00:18]} 43. Qg7 {[%clk 0:01:27]}  Kc6 {[%clk 0:00:17]} 44. Qxf7 {[%clk 0:01:27]}  d4 {[%clk 0:00:17]} 45. Qxe6+ {[%clk 0:01:25]}  Kb5 {[%clk 0:00:17]} 46. Rb1+ {[%clk 0:01:20]}  Kc5 {[%clk 0:00:16]} 47. Qd6# {[%clk 0:01:14]} 1-0

[Event "December 5 Early 2023"]
[Site "https://www.chess.com"]
[Date "2023.12.05"]
[Round "10"]
[White "Skiadopoulos, Nikolaos"]
[Black "Teumer, Joerg, Dr."]
[Result "1/2-1/2"]
[Board "152"]
[TimeControl "180+1"]
[WhiteFideId "4200772"]
[BlackFideId "4643526"]
[WhiteElo "1771"]
[BlackElo "2115"]
[WhiteTeam "GRE"]
[BlackTeam "GER"]
[WhiteClock "0:00:13"]
[BlackClock "0:00:02"]

1. e4 {[%clk 0:02:57]}  d5 {[%clk 0:02:59]} 2. d4 {[%clk 0:02:54]}  dxe4 {[%clk 0:02:58]} 3. Nc3 {[%clk 0:02:54]}  Nf6 {[%clk 0:02:52]} 4. f3 {[%clk 0:02:53]}  exf3 {[%clk 0:02:51]} 5. Qxf3 {[%clk 0:02:53]}  c6 {[%clk 0:02:48]} 6. h3 {[%clk 0:02:48]}  Nd5 {[%clk 0:02:37]} 7. Bd2 {[%clk 0:02:38]}  e6 {[%clk 0:02:29]} 8. O-O-O {[%clk 0:02:36]}  Be7 {[%clk 0:02:19]} 9. Bd3 {[%clk 0:02:30]}  Nd7 {[%clk 0:02:16]} 10. Nge2 {[%clk 0:02:29]}  Nxc3 {[%clk 0:02:14]} 11. Nxc3 {[%clk 0:02:28]}  Nf6 {[%clk 0:02:14]} 12. Be3 {[%clk 0:02:16]}  Bb4 {[%clk 0:02:07]} 13. Ne4 {[%clk 0:02:13]}  Nxe4 {[%clk 0:01:56]} 14. Bxe4 {[%clk 0:02:09]}  Bd7 {[%clk 0:01:29]} 15. Rhf1 {[%clk 0:02:07]}  Qe7 {[%clk 0:01:25]} 16. Qg3 {[%clk 0:02:04]}  f6 {[%clk 0:01:12]} 17. Bxh7 {[%clk 0:01:55]}  O-O-O {[%clk 0:01:08]} 18. Bd3 {[%clk 0:01:51]}  Bd6 {[%clk 0:01:08]} 19. Bf4 {[%clk 0:01:48]}  Bxf4+ {[%clk 0:01:07]} 20. Qxf4 {[%clk 0:01:48]}  Be8 {[%clk 0:01:06]} 21. c3 {[%clk 0:01:41]}  Qd6 {[%clk 0:01:05]} 22. Qxd6 {[%clk 0:01:40]}  Rxd6 {[%clk 0:01:05]} 23. Rde1 {[%clk 0:01:40]}  Bf7 {[%clk 0:00:58]} 24. Bc4 {[%clk 0:01:35]}  Re8 {[%clk 0:00:52]} 25. Re3 {[%clk 0:01:34]}  Kc7 {[%clk 0:00:51]} 26. Rfe1 {[%clk 0:01:34]}  a5 {[%clk 0:00:46]} 27. a4 {[%clk 0:01:32]}  b6 {[%clk 0:00:44]} 28. Kd2 {[%clk 0:01:21]}  Kd7 {[%clk 0:00:44]} 29. Kc1 {[%clk 0:01:20]}  Re7 {[%clk 0:00:44]} 30. R3e2 {[%clk 0:01:20]}  Bg6 {[%clk 0:00:33]} 31. Re3 {[%clk 0:01:15]}  Bf5 {[%clk 0:00:31]} 32. Bd3 {[%clk 0:01:11]}  Bxd3 {[%clk 0:00:31]} 33. Rxd3 {[%clk 0:01:11]}  e5 {[%clk 0:00:29]} 34. Rde3 {[%clk 0:01:11]}  Rde6 {[%clk 0:00:28]} 35. dxe5 {[%clk 0:01:11]}  fxe5 {[%clk 0:00:29]} 36. Re4 {[%clk 0:01:10]}  Kd6 {[%clk 0:00:29]} 37. Kd2 {[%clk 0:01:09]}  Rf7 {[%clk 0:00:28]} 38. Ke3 {[%clk 0:01:07]}  Ref6 {[%clk 0:00:27]} 39. Rd1+ {[%clk 0:01:04]}  Ke6 {[%clk 0:00:25]} 40. b4 {[%clk 0:01:03]}  axb4 {[%clk 0:00:25]} 41. Rxb4 {[%clk 0:01:02]}  Rb7 {[%clk 0:00:22]} 42. a5 {[%clk 0:01:01]}  b5 {[%clk 0:00:23]} 43. c4 {[%clk 0:01:01]}  Rf4 {[%clk 0:00:21]} 44. Rdb1 {[%clk 0:00:53]}  Kd6 {[%clk 0:00:15]} 45. cxb5 {[%clk 0:00:49]}  Rxb4 {[%clk 0:00:14]} 46. Rxb4 {[%clk 0:00:49]}  cxb5 {[%clk 0:00:14]} 47. a6 {[%clk 0:00:46]}  Rb6 {[%clk 0:00:12]} 48. a7 {[%clk 0:00:46]}  Ra6 {[%clk 0:00:13]} 49. Rxb5 {[%clk 0:00:46]}  Rxa7 {[%clk 0:00:13]} 50. Rb6+ {[%clk 0:00:39]}  Kd5 {[%clk 0:00:13]} 51. Rg6 {[%clk 0:00:38]}  Ra3+ {[%clk 0:00:12]} 52. Kf2 {[%clk 0:00:37]}  Ra2+ {[%clk 0:00:12]} 53. Kg3 {[%clk 0:00:37]}  e4 {[%clk 0:00:11]} 54. Rxg7 {[%clk 0:00:36]}  Ke5 {[%clk 0:00:11]} 55. Re7+ {[%clk 0:00:35]}  Kf5 {[%clk 0:00:11]} 56. h4 {[%clk 0:00:33]}  Ra3+ {[%clk 0:00:11]} 57. Kf2 {[%clk 0:00:32]}  Kf4 {[%clk 0:00:10]} 58. Rf7+ {[%clk 0:00:31]}  Ke5 {[%clk 0:00:10]} 59. Re7+ {[%clk 0:00:31]}  Kf5 {[%clk 0:00:10]} 60. Rf7+ {[%clk 0:00:30]}  Ke5 {[%clk 0:00:10]} 61. Re7+ {[%clk 0:00:30]}  Kf5 {[%clk 0:00:10]} 62. h5 {[%clk 0:00:29]}  Ra2+ {[%clk 0:00:07]} 63. Kg3 {[%clk 0:00:27]}  Kg5 {[%clk 0:00:06]} 64. Rxe4 {[%clk 0:00:24]}  Kxh5 {[%clk 0:00:06]} 65. Re5+ {[%clk 0:00:24]}  Kg6 {[%clk 0:00:06]} 66. Kf3 {[%clk 0:00:24]}  Ra3+ {[%clk 0:00:06]} 67. Kf4 {[%clk 0:00:23]}  Ra4+ {[%clk 0:00:06]} 68. Re4 {[%clk 0:00:22]}  Ra2 {[%clk 0:00:06]} 69. g4 {[%clk 0:00:22]}  Ra1 {[%clk 0:00:06]} 70. Re6+ {[%clk 0:00:22]}  Kg7 {[%clk 0:00:06]} 71. Rb6 {[%clk 0:00:22]}  Rf1+ {[%clk 0:00:04]} 72. Kg5 {[%clk 0:00:22]}  Rc1 {[%clk 0:00:04]} 73. Rb7+ {[%clk 0:00:21]}  Kg8 {[%clk 0:00:04]} 74. Kg6 {[%clk 0:00:21]}  Rc6+ {[%clk 0:00:05]} 75. Kh5 {[%clk 0:00:18]}  Ra6 {[%clk 0:00:05]} 76. g5 {[%clk 0:00:18]}  Rc6 {[%clk 0:00:04]} 77. g6 {[%clk 0:00:16]}  Rc8 {[%clk 0:00:02]} 78. Kh6 {[%clk 0:00:15]}  Kh8 {[%clk 0:00:01]} 79. Rh7+ {[%clk 0:00:15]}  Kg8 {[%clk 0:00:01]} 80. Rg7+ {[%clk 0:00:15]}  Kh8 {[%clk 0:00:01]} 81. Rf7 {[%clk 0:00:14]}  Kg8 {[%clk 0:00:01]} 82. Rd7 {[%clk 0:00:14]}  Kh8 {[%clk 0:00:01]} 83. g7+ {[%clk 0:00:14]}  Kg8 {[%clk 0:00:02]} 84. Rd6 {[%clk 0:00:13]}  Rb8 {[%clk 0:00:01]} 85. Rf6 {[%clk 0:00:12]}  Rc8 {[%clk 0:00:01]} 86. Rf8+ {[%clk 0:00:13]}  Rxf8 {[%clk 0:00:01]} 87. gxf8=Q+ {[%clk 0:00:13]}  Kxf8 {[%clk 0:00:02]} 1/2-1/2

[Event "December 5 Early 2023"]
[Site "https://www.chess.com"]
[Date "2023.12.05"]
[Round "10"]
[White "Mangialardo, Tiago Carvalho"]
[Black "Vargas, Mauricio"]
[Result "1-0"]
[Board "153"]
[TimeControl "180+1"]
[WhiteFideId "2130718"]
[BlackFideId "4404572"]
[WhiteElo "2083"]
[BlackElo "1834"]
[WhiteTeam "BRA"]
[BlackTeam "COL"]
[WhiteClock "0:00:10"]
[BlackClock "0:00:00"]

1. e4 {[%clk 0:03:00]}  d5 {[%clk 0:02:58]} 2. exd5 {[%clk 0:02:58]}  Qxd5 {[%clk 0:02:59]} 3. Nc3 {[%clk 0:02:58]}  Qa5 {[%clk 0:02:59]} 4. Bc4 {[%clk 0:02:58]}  c6 {[%clk 0:02:59]} 5. Nge2 {[%clk 0:02:58]}  Nf6 {[%clk 0:02:59]} 6. O-O {[%clk 0:02:56]}  Bg4 {[%clk 0:02:58]} 7. Qe1 {[%clk 0:02:55]}  e6 {[%clk 0:02:56]} 8. h3 {[%clk 0:02:52]}  Bf5 {[%clk 0:02:52]} 9. d3 {[%clk 0:02:52]}  Nbd7 {[%clk 0:02:51]} 10. Ng3 {[%clk 0:02:52]}  Bg6 {[%clk 0:02:50]} 11. f4 {[%clk 0:02:48]}  Bd6 {[%clk 0:02:47]} 12. Bxe6 {[%clk 0:02:23]}  O-O {[%clk 0:02:31]} 13. f5 {[%clk 0:02:13]}  Bxg3 {[%clk 0:02:17]} 14. Qxg3 {[%clk 0:02:10]}  Bh5 {[%clk 0:02:05]} 15. Bxd7 {[%clk 0:01:59]}  Nxd7 {[%clk 0:01:59]} 16. Bh6 {[%clk 0:01:40]}  Qe5 {[%clk 0:01:06]} 17. Qg5 {[%clk 0:00:55]}  Qd4+ {[%clk 0:00:37]} 18. Kh1 {[%clk 0:00:50]}  Qf6 {[%clk 0:00:30]} 19. Qxh5 {[%clk 0:00:42]}  Qxh6 {[%clk 0:00:29]} 20. Qxh6 {[%clk 0:00:37]}  gxh6 {[%clk 0:00:29]} 21. Ne4 {[%clk 0:00:30]}  f6 {[%clk 0:00:27]} 22. Rae1 {[%clk 0:00:22]}  Kf7 {[%clk 0:00:26]} 23. Nd6+ {[%clk 0:00:22]}  Kg7 {[%clk 0:00:24]} 24. Re7+ {[%clk 0:00:22]}  Kh8 {[%clk 0:00:19]} 25. Rxd7 {[%clk 0:00:22]}  Rg8 {[%clk 0:00:15]} 26. Nf7+ {[%clk 0:00:16]}  Kg7 {[%clk 0:00:14]} 27. Rf3 {[%clk 0:00:17]}  Kf8 {[%clk 0:00:13]} 28. Nxh6 {[%clk 0:00:16]}  Rg5 {[%clk 0:00:11]} 29. Rf7+ {[%clk 0:00:15]}  Ke8 {[%clk 0:00:10]} 30. Re3+ {[%clk 0:00:16]}  Kd8 {[%clk 0:00:10]} 31. Ree7 {[%clk 0:00:15]}  Rb8 {[%clk 0:00:06]} 32. Rd7+ {[%clk 0:00:16]}  Kc8 {[%clk 0:00:05]} 33. Rc7+ {[%clk 0:00:11]}  Kd8 {[%clk 0:00:03]} 34. Rfd7+ {[%clk 0:00:10]}  Ke8 {[%clk 0:00:00]} 35. Nf7 {[%clk 0:00:10]} 1-0

[Event "December 5 Early 2023"]
[Site "https://www.chess.com"]
[Date "2023.12.05"]
[Round "10"]
[White "Kniazev, Igor"]
[Black "Gulamirian, Korun"]
[Result "0-1"]
[Board "154"]
[TimeControl "180+1"]
[WhiteFideId "4136349"]
[BlackFideId "4144899"]
[WhiteElo "2070"]
[BlackElo "1998"]
[WhiteTeam "RUS"]
[BlackTeam "RUS"]
[WhiteClock "0:00:58"]
[BlackClock "0:00:29"]

1. e4 {[%clk 0:02:30]}  e5 {[%clk 0:02:57]} 2. Nf3 {[%clk 0:02:29]}  Nc6 {[%clk 0:02:57]} 3. Bc4 {[%clk 0:02:28]}  Nf6 {[%clk 0:02:56]} 4. Ng5 {[%clk 0:02:26]}  d5 {[%clk 0:02:56]} 5. exd5 {[%clk 0:02:26]}  Na5 {[%clk 0:02:57]} 6. Bb5+ {[%clk 0:02:26]}  c6 {[%clk 0:02:57]} 7. dxc6 {[%clk 0:02:26]}  bxc6 {[%clk 0:02:57]} 8. Ba4 {[%clk 0:02:26]}  Bd7 {[%clk 0:02:57]} 9. O-O {[%clk 0:02:25]}  h6 {[%clk 0:02:56]} 10. Nf3 {[%clk 0:02:24]}  e4 {[%clk 0:02:55]} 11. Ne5 {[%clk 0:02:24]}  Bd6 {[%clk 0:02:51]} 12. d4 {[%clk 0:02:20]}  exd3 {[%clk 0:02:50]} 13. Nxd7 {[%clk 0:02:19]}  Qxd7 {[%clk 0:02:44]} 14. Re1+ {[%clk 0:02:13]}  Be7 {[%clk 0:02:40]} 15. Qxd3 {[%clk 0:02:13]}  Rd8 {[%clk 0:02:23]} 16. Bd2 {[%clk 0:02:02]}  Nb7 {[%clk 0:02:15]} 17. Qxd7+ {[%clk 0:02:01]}  Kxd7 {[%clk 0:02:15]} 18. Bc3 {[%clk 0:01:56]}  Rhe8 {[%clk 0:01:55]} 19. Nd2 {[%clk 0:01:51]}  Nc5 {[%clk 0:01:52]} 20. Bb3 {[%clk 0:01:49]}  Nxb3 {[%clk 0:01:52]} 21. axb3 {[%clk 0:01:49]}  Bc5 {[%clk 0:01:48]} 22. Rxe8 {[%clk 0:01:46]}  Rxe8 {[%clk 0:01:46]} 23. Bxf6 {[%clk 0:01:46]}  gxf6 {[%clk 0:01:45]} 24. b4 {[%clk 0:01:43]}  Bb6 {[%clk 0:01:39]} 25. Nc4 {[%clk 0:01:42]}  Re2 {[%clk 0:01:38]} 26. c3 {[%clk 0:01:41]}  Bxf2+ {[%clk 0:01:28]} 27. Kf1 {[%clk 0:01:40]}  Rc2 {[%clk 0:01:27]} 28. Rd1+ {[%clk 0:01:34]}  Ke7 {[%clk 0:01:20]} 29. Rd2 {[%clk 0:01:31]}  Rxd2 {[%clk 0:01:14]} 30. Nxd2 {[%clk 0:01:30]}  Bb6 {[%clk 0:01:08]} 31. Ke2 {[%clk 0:01:27]}  f5 {[%clk 0:01:05]} 32. Nc4 {[%clk 0:01:25]}  Bc7 {[%clk 0:01:04]} 33. h3 {[%clk 0:01:26]}  h5 {[%clk 0:01:04]} 34. Kd3 {[%clk 0:01:23]}  Kf6 {[%clk 0:00:58]} 35. Kd4 {[%clk 0:01:19]}  h4 {[%clk 0:00:55]} 36. Kc5 {[%clk 0:01:19]}  Kg5 {[%clk 0:00:51]} 37. Kxc6 {[%clk 0:01:19]}  Bh2 {[%clk 0:00:47]} 38. Nd6 {[%clk 0:01:17]}  f6 {[%clk 0:00:45]} 39. c4 {[%clk 0:01:16]}  Kf4 {[%clk 0:00:44]} 40. c5 {[%clk 0:01:15]}  Kg3 {[%clk 0:00:44]} 41. Kd5 {[%clk 0:01:14]}  Kxg2 {[%clk 0:00:44]} 42. c6 {[%clk 0:01:15]}  f4 {[%clk 0:00:40]} 43. c7 {[%clk 0:01:15]}  f3 {[%clk 0:00:40]} 44. c8=Q {[%clk 0:01:14]}  f2 {[%clk 0:00:40]} 45. Qg4+ {[%clk 0:01:11]}  Bg3 {[%clk 0:00:40]} 46. Qe2 {[%clk 0:01:09]}  Kg1 {[%clk 0:00:39]} 47. Qe3 {[%clk 0:01:07]}  Kg2 {[%clk 0:00:39]} 48. Qd2 {[%clk 0:01:06]}  Kg1 {[%clk 0:00:39]} 49. Qe3 {[%clk 0:01:05]}  Kg2 {[%clk 0:00:35]} 50. Qe2 {[%clk 0:01:01]}  Kg1 {[%clk 0:00:32]} 51. Nc4 {[%clk 0:01:01]}  f1=Q {[%clk 0:00:30]} 52. Ne3 {[%clk 0:00:58]}  Qxe2 {[%clk 0:00:29]} 0-1

[Event "December 5 Early 2023"]
[Site "https://www.chess.com"]
[Date "2023.12.05"]
[Round "11"]
[White "Shimanov, Aleksandr"]
[Black "Aronian, Levon"]
[Result "0-1"]
[Board "1"]
[TimeControl "180+1"]
[WhiteFideId "4198603"]
[BlackFideId "13300474"]
[WhiteElo "2994"]
[BlackElo "3108"]
[WhiteTeam "RUS"]
[BlackTeam "USA"]
[WhiteClock "0:00:00"]
[BlackClock "0:00:20"]

1. d4 {[%clk 0:03:00]}  d5 {[%clk 0:02:59]} 2. Bg5 {[%clk 0:02:53]}  f6 {[%clk 0:02:52]} 3. Bh4 {[%clk 0:02:53]}  Nh6 {[%clk 0:02:50]} 4. f3 {[%clk 0:02:52]}  Nc6 {[%clk 0:02:47]} 5. e4 {[%clk 0:02:46]}  dxe4 {[%clk 0:02:41]} 6. d5 {[%clk 0:02:45]}  Nf5 {[%clk 0:02:40]} 7. fxe4 {[%clk 0:02:26]}  Nxh4 {[%clk 0:02:37]} 8. Qh5+ {[%clk 0:02:26]}  Ng6 {[%clk 0:02:31]} 9. dxc6 {[%clk 0:02:26]}  bxc6 {[%clk 0:02:30]} 10. Nc3 {[%clk 0:02:23]}  Qd4 {[%clk 0:02:27]} 11. Bd3 {[%clk 0:02:01]}  Qe3+ {[%clk 0:02:21]} 12. Nge2 {[%clk 0:02:01]}  e5 {[%clk 0:02:18]} 13. Rf1 {[%clk 0:01:58]}  Be6 {[%clk 0:02:05]} 14. Rf3 {[%clk 0:01:58]}  Qg5 {[%clk 0:02:04]} 15. Qxg5 {[%clk 0:01:57]}  fxg5 {[%clk 0:02:05]} 16. g3 {[%clk 0:01:51]}  Bc5 {[%clk 0:01:51]} 17. O-O-O {[%clk 0:01:51]}  Rf8 {[%clk 0:01:42]} 18. Rxf8+ {[%clk 0:01:49]}  Nxf8 {[%clk 0:01:42]} 19. Kb1 {[%clk 0:01:39]}  Nd7 {[%clk 0:01:40]} 20. Nc1 {[%clk 0:01:39]}  Ke7 {[%clk 0:01:39]} 21. Nb3 {[%clk 0:01:39]}  Bb6 {[%clk 0:01:38]} 22. a4 {[%clk 0:01:15]}  a5 {[%clk 0:01:37]} 23. Nd2 {[%clk 0:01:12]}  Rf8 {[%clk 0:01:34]} 24. Rf1 {[%clk 0:01:08]}  Rxf1+ {[%clk 0:01:33]} 25. Nxf1 {[%clk 0:01:08]}  h5 {[%clk 0:01:17]} 26. b3 {[%clk 0:01:06]}  g4 {[%clk 0:01:15]} 27. Nd1 {[%clk 0:01:01]}  Nf6 {[%clk 0:01:10]} 28. Nde3 {[%clk 0:00:59]}  g6 {[%clk 0:01:09]} 29. Kc1 {[%clk 0:00:58]}  Nh7 {[%clk 0:01:05]} 30. Kd2 {[%clk 0:00:56]}  Ng5 {[%clk 0:01:05]} 31. Ke2 {[%clk 0:00:56]}  Kf6 {[%clk 0:01:01]} 32. Nc4 {[%clk 0:00:52]}  Bxc4 {[%clk 0:01:01]} 33. bxc4 {[%clk 0:00:45]}  Bd4 {[%clk 0:01:01]} 34. Nd2 {[%clk 0:00:40]}  Bc3 {[%clk 0:00:56]} 35. Nb1 {[%clk 0:00:30]}  Bd4 {[%clk 0:00:45]} 36. Nd2 {[%clk 0:00:28]}  Ne6 {[%clk 0:00:40]} 37. Nb3 {[%clk 0:00:26]}  Bc3 {[%clk 0:00:39]} 38. Kf2 {[%clk 0:00:24]}  Ke7 {[%clk 0:00:37]} 39. c5 {[%clk 0:00:16]}  Bb4 {[%clk 0:00:37]} 40. Bc4 {[%clk 0:00:13]}  Ng5 {[%clk 0:00:26]} 41. Bd3 {[%clk 0:00:11]}  Kf6 {[%clk 0:00:23]} 42. Kg2 {[%clk 0:00:11]}  Nf3 {[%clk 0:00:22]} 43. Kh1 {[%clk 0:00:04]}  Ne1 {[%clk 0:00:19]} 44. Kg1 {[%clk 0:00:04]}  Kg5 {[%clk 0:00:19]} 45. Kf2 {[%clk 0:00:03]}  h4 {[%clk 0:00:19]} 46. gxh4+ {[%clk 0:00:00]}  Kxh4 {[%clk 0:00:20]} 0-1

[Event "December 5 Early 2023"]
[Site "https://www.chess.com"]
[Date "2023.12.05"]
[Round "11"]
[White "Andreikin, Dmitry"]
[Black "Drygalov, Sergey"]
[Result "1-0"]
[Board "2"]
[TimeControl "180+1"]
[WhiteFideId "4158814"]
[BlackFideId "24171743"]
[WhiteElo "3107"]
[BlackElo "2987"]
[WhiteTeam "FID"]
[BlackTeam "RUS"]
[WhiteClock "0:00:04"]
[BlackClock "0:00:00"]

1. d4 {[%clk 0:03:00]}  d5 {[%clk 0:03:00]} 2. c4 {[%clk 0:03:00]}  c6 {[%clk 0:03:00]} 3. Nf3 {[%clk 0:02:59]}  Nf6 {[%clk 0:03:01]} 4. Qc2 {[%clk 0:02:56]}  e6 {[%clk 0:02:56]} 5. Nbd2 {[%clk 0:02:53]}  Nbd7 {[%clk 0:02:49]} 6. g3 {[%clk 0:02:47]}  b6 {[%clk 0:02:07]} 7. Bg2 {[%clk 0:02:46]}  Bb7 {[%clk 0:02:07]} 8. O-O {[%clk 0:02:46]}  c5 {[%clk 0:02:08]} 9. b3 {[%clk 0:02:32]}  Be7 {[%clk 0:02:06]} 10. Bb2 {[%clk 0:02:31]}  O-O {[%clk 0:02:06]} 11. Rad1 {[%clk 0:02:26]}  Rc8 {[%clk 0:02:06]} 12. Qb1 {[%clk 0:02:26]}  Qc7 {[%clk 0:02:06]} 13. dxc5 {[%clk 0:02:19]}  Nxc5 {[%clk 0:02:03]} 14. Be5 {[%clk 0:02:14]}  Bd6 {[%clk 0:01:55]} 15. Bxf6 {[%clk 0:02:11]}  gxf6 {[%clk 0:01:56]} 16. Nh4 {[%clk 0:01:59]}  dxc4 {[%clk 0:01:36]} 17. Nxc4 {[%clk 0:02:00]}  Be7 {[%clk 0:01:37]} 18. Qc1 {[%clk 0:01:43]}  b5 {[%clk 0:01:22]} 19. Nd2 {[%clk 0:01:35]}  Bxg2 {[%clk 0:01:15]} 20. Nxg2 {[%clk 0:01:36]}  Nd7 {[%clk 0:01:08]} 21. Qa1 {[%clk 0:01:21]}  Qc3 {[%clk 0:01:05]} 22. Qxc3 {[%clk 0:01:17]}  Rxc3 {[%clk 0:01:06]} 23. Ne4 {[%clk 0:01:16]}  Rc7 {[%clk 0:01:06]} 24. Nf4 {[%clk 0:01:16]}  f5 {[%clk 0:01:01]} 25. Nd6 {[%clk 0:01:02]}  a6 {[%clk 0:00:59]} 26. Rd2 {[%clk 0:01:01]}  Nf6 {[%clk 0:00:56]} 27. Rfd1 {[%clk 0:01:01]}  Rd8 {[%clk 0:00:41]} 28. Nxf5 {[%clk 0:00:57]}  Rxd2 {[%clk 0:00:28]} 29. Nxe7+ {[%clk 0:00:57]}  Kf8 {[%clk 0:00:25]} 30. Rxd2 {[%clk 0:00:57]}  Kxe7 {[%clk 0:00:25]} 31. f3 {[%clk 0:00:55]}  Rc1+ {[%clk 0:00:25]} 32. Kf2 {[%clk 0:00:55]}  a5 {[%clk 0:00:25]} 33. Nd3 {[%clk 0:00:53]}  Rc3 {[%clk 0:00:23]} 34. Ne5 {[%clk 0:00:47]}  Rc5 {[%clk 0:00:23]} 35. Nd3 {[%clk 0:00:46]}  Rc3 {[%clk 0:00:23]} 36. e4 {[%clk 0:00:45]}  Nd7 {[%clk 0:00:23]} 37. Ke2 {[%clk 0:00:42]}  b4 {[%clk 0:00:21]} 38. h4 {[%clk 0:00:33]}  Nb6 {[%clk 0:00:21]} 39. h5 {[%clk 0:00:22]}  h6 {[%clk 0:00:21]} 40. g4 {[%clk 0:00:22]}  a4 {[%clk 0:00:19]} 41. Nxb4 {[%clk 0:00:19]}  axb3 {[%clk 0:00:20]} 42. axb3 {[%clk 0:00:19]}  Rxb3 {[%clk 0:00:20]} 43. Nc6+ {[%clk 0:00:19]}  Kf6 {[%clk 0:00:21]} 44. Nd4 {[%clk 0:00:14]}  Ra3 {[%clk 0:00:20]} 45. f4 {[%clk 0:00:12]}  Nc4 {[%clk 0:00:20]} 46. e5+ {[%clk 0:00:11]}  Kg7 {[%clk 0:00:20]} 47. Rc2 {[%clk 0:00:08]}  Ne3 {[%clk 0:00:09]} 48. Rc7 {[%clk 0:00:09]}  Kg8 {[%clk 0:00:08]} 49. Rc8+ {[%clk 0:00:09]}  Kg7 {[%clk 0:00:08]} 50. Rc7 {[%clk 0:00:10]}  Kg8 {[%clk 0:00:08]} 51. Nb5 {[%clk 0:00:10]}  Rb3 {[%clk 0:00:07]} 52. Nd6 {[%clk 0:00:10]}  Nxg4 {[%clk 0:00:07]} 53. Rxf7 {[%clk 0:00:09]}  Re3+ {[%clk 0:00:06]} 54. Kd2 {[%clk 0:00:09]}  Rf3 {[%clk 0:00:07]} 55. Ke2 {[%clk 0:00:06]}  Rf2+ {[%clk 0:00:06]} 56. Ke1 {[%clk 0:00:06]}  Rf3 {[%clk 0:00:07]} 57. Re7 {[%clk 0:00:03]}  Rxf4 {[%clk 0:00:06]} 58. Rxe6 {[%clk 0:00:03]}  Kg7 {[%clk 0:00:06]} 59. Rg6+ {[%clk 0:00:03]}  Kh7 {[%clk 0:00:07]} 60. e6 {[%clk 0:00:03]}  Nf6 {[%clk 0:00:01]} 61. e7 {[%clk 0:00:03]}  Ne8 {[%clk 0:00:01]} 62. Nxe8 {[%clk 0:00:04]}  Re4+ {[%clk 0:00:01]} 63. Kf2 {[%clk 0:00:04]}  Rxe7 {[%clk 0:00:00]} 64. Nf6+ {[%clk 0:00:04]} 1-0

[Event "December 5 Early 2023"]
[Site "https://www.chess.com"]
[Date "2023.12.05"]
[Round "11"]
[White "Le, Tuan Minh"]
[Black "Naroditsky, Daniel"]
[Result "0-1"]
[Board "3"]
[TimeControl "180+1"]
[WhiteFideId "12401153"]
[BlackFideId "2026961"]
[WhiteElo "3078"]
[BlackElo "3165"]
[WhiteTeam "VIE"]
[BlackTeam "USA"]
[WhiteClock "0:00:01"]
[BlackClock "0:00:18"]

1. d4 {[%clk 0:02:57]}  Nf6 {[%clk 0:03:00]} 2. c4 {[%clk 0:02:53]}  g6 {[%clk 0:03:00]} 3. g3 {[%clk 0:02:53]}  Bg7 {[%clk 0:03:01]} 4. Bg2 {[%clk 0:02:54]}  O-O {[%clk 0:03:02]} 5. Nf3 {[%clk 0:02:55]}  d6 {[%clk 0:03:02]} 6. O-O {[%clk 0:02:55]}  Nbd7 {[%clk 0:03:01]} 7. Qc2 {[%clk 0:02:56]}  e5 {[%clk 0:03:00]} 8. Rd1 {[%clk 0:02:56]}  Qe7 {[%clk 0:02:54]} 9. Nc3 {[%clk 0:02:56]}  c6 {[%clk 0:02:54]} 10. e4 {[%clk 0:02:55]}  exd4 {[%clk 0:02:53]} 11. Nxd4 {[%clk 0:02:55]}  Nc5 {[%clk 0:02:54]} 12. Bf4 {[%clk 0:02:44]}  Rd8 {[%clk 0:02:44]} 13. h3 {[%clk 0:02:42]}  Nfd7 {[%clk 0:02:31]} 14. b4 {[%clk 0:02:30]}  Bxd4 {[%clk 0:02:13]} 15. Rxd4 {[%clk 0:01:59]}  Ne6 {[%clk 0:02:14]} 16. Rd3 {[%clk 0:02:00]}  Nxf4 {[%clk 0:01:41]} 17. gxf4 {[%clk 0:02:01]}  Nb6 {[%clk 0:01:41]} 18. c5 {[%clk 0:01:34]}  dxc5 {[%clk 0:01:42]} 19. Rxd8+ {[%clk 0:01:34]}  Qxd8 {[%clk 0:01:43]} 20. bxc5 {[%clk 0:01:35]}  Nd7 {[%clk 0:01:43]} 21. Ne2 {[%clk 0:01:33]}  Qe7 {[%clk 0:01:37]} 22. Rc1 {[%clk 0:01:33]}  Nf6 {[%clk 0:01:36]} 23. f5 {[%clk 0:01:19]}  Bd7 {[%clk 0:01:25]} 24. fxg6 {[%clk 0:01:05]}  hxg6 {[%clk 0:01:24]} 25. Ng3 {[%clk 0:01:04]}  Rd8 {[%clk 0:01:04]} 26. Qa4 {[%clk 0:00:58]}  a6 {[%clk 0:00:54]} 27. Qb3 {[%clk 0:00:47]}  Be6 {[%clk 0:00:54]} 28. Qb2 {[%clk 0:00:43]}  Rd3 {[%clk 0:00:54]} 29. Bf1 {[%clk 0:00:34]}  Rd7 {[%clk 0:00:54]} 30. a4 {[%clk 0:00:31]}  Nh7 {[%clk 0:00:52]} 31. Rc3 {[%clk 0:00:24]}  Qh4 {[%clk 0:00:51]} 32. Rd3 {[%clk 0:00:20]}  Rxd3 {[%clk 0:00:49]} 33. Bxd3 {[%clk 0:00:20]}  Ng5 {[%clk 0:00:43]} 34. Bf1 {[%clk 0:00:16]}  Bxh3 {[%clk 0:00:24]} 35. Qf6 {[%clk 0:00:16]}  Bg4 {[%clk 0:00:18]} 36. Qd8+ {[%clk 0:00:01]}  Kh7 {[%clk 0:00:18]} 0-1